fUSD/lending_fUSD_20260407
["ID","MTS","AMOUNT","RATE_DAILY","PERIOD"]
[419998551,1775597450542,-151.0,0.00015999,2]
[419998552,1775597450552,-336.506277,0.00015999,2]
[419998553,1775597450561,-182.173836,0.00015999,2]
[419998554,1775597450570,-182.173836,0.00015999,2]
[419998555,1775597450580,-182.173836,0.00015999,2]
[419998556,1775597450589,-182.173836,0.00015999,2]
[419998557,1775597450599,-403.25901656,0.00015999,2]
[419998558,1775597450608,-500.0,0.00015999,2]
[419998559,1775597450618,-500.0,0.00015999,2]
[419998560,1775597450627,-500.0,0.00015999,2]
[419998561,1775597450638,-151.0,0.00015999,2]
[419998562,1775597450647,-500.0,0.00015999,2]
[419998563,1775597450656,-500.0,0.00015999,2]
[419998564,1775597450667,-500.0,0.00015999,2]
[419998565,1775597450676,-500.0,0.00015999,2]
[419998566,1775597450686,-500.0,0.00015999,2]
[419998567,1775597450695,-500.0,0.00015999,2]
[419998568,1775597450704,-500.0,0.00015999,2]
[419998569,1775597450714,-500.0,0.00015999,2]
[419998570,1775597450724,-500.0,0.00015999,2]
[419998571,1775597450733,-500.0,0.00015999,2]
[419998572,1775597450743,-500.0,0.00015999,2]
[419998573,1775597450753,-500.0,0.00015999,2]
[419998574,1775597450763,-500.0,0.00015999,2]
[419998575,1775597450772,-500.0,0.00015999,2]
[419998576,1775597450783,-500.0,0.00015999,2]
[419998577,1775597450792,-500.0,0.00015999,2]
[419998578,1775597450802,-500.0,0.00015999,2]
[419998579,1775597450811,-372.7946016,0.00015999,2]
[419998580,1775597450821,-201.80125,0.00015999,2]
[419998581,1775597450831,-221.003928,0.00015999,2]
[419998582,1775597450840,-500.0,0.00015999,2]
[419998583,1775597450850,-500.0,0.00015999,2]
[419998584,1775597450860,-500.0,0.00015999,2]
[419998585,1775597450870,-500.0,0.00015999,2]
[419998586,1775597450880,-500.0,0.00015999,2]
[419998587,1775597450890,-151.0,0.00015999,2]
[419998588,1775597450900,-151.0,0.00015999,2]
[419998589,1775597450909,-151.0,0.00015999,2]
[419998590,1775597450924,-151.0,0.00015999,2]
[419998591,1775597450934,-227.65933,0.00015999,2]
[419998592,1775597450944,-151.0,0.00015999,2]
[419998593,1775597450954,-186.242208,0.00015999,2]
[419998594,1775597450964,-153.498266,0.00015999,2]
[419998595,1775597450973,-227.65933,0.00015999,2]
[419998596,1775597450983,-227.65933,0.00015999,2]
[419998597,1775597450994,-151.0,0.00015999,2]
[419998598,1775597451004,-227.65933,0.00015999,2]
[419998599,1775597451013,-200.210975,0.00015999,2]
[419998600,1775597451023,-151.0,0.00015999,2]
[419998601,1775597451033,-200.210975,0.00015999,2]
[419998602,1775597451044,-151.0,0.00015999,2]
[419998603,1775597451054,-1390.327679,0.00015999,2]
[419998604,1775597451064,-151.0,0.00015999,2]
[419998605,1775597451075,-200.210975,0.00015999,2]
[419998606,1775597451085,-1390.327679,0.00015999,2]
[419998607,1775597451095,-200.210975,0.00015999,2]
[419998608,1775597451105,-218.732623,0.00015999,2]
[419998609,1775597451114,-1390.327679,0.00015999,2]
[419998610,1775597451124,-1390.327679,0.00015999,2]
[419998611,1775597451135,-151.0,0.00015999,2]
[419998612,1775597451144,-151.0,0.00015999,2]
[419998613,1775597451155,-151.0,0.00015999,2]
[419998614,1775597451165,-151.0,0.00015999,2]
[419998615,1775597451175,-151.0,0.00015999,2]
[419998616,1775597451184,-247.330992,0.00015999,2]
[419998617,1775597451194,-151.0,0.00015999,2]
[419998618,1775597451204,-151.0,0.00015999,2]
[419998619,1775597451214,-151.0,0.00015999,2]
[419998620,1775597451224,-151.0,0.00015999,2]
[419998621,1775597451233,-422.022549,0.00015999,2]
[419998622,1775597451243,-422.022549,0.00015999,2]
[419998623,1775597451253,-532.889344,0.00015999,2]
[419998624,1775597451263,-422.022549,0.00015999,2]
[419998625,1775597451273,-532.889344,0.00015999,2]
[419998626,1775597451283,-422.022549,0.00015999,2]
[419998627,1775597451293,-151.0,0.00015999,2]
[419998628,1775597451303,-532.889344,0.00015999,2]
[419998629,1775597451312,-151.0,0.00015999,2]
[419998630,1775597451322,-532.889344,0.00015999,2]
[419998631,1775597451332,-151.0,0.00015999,2]
[419998632,1775597451342,-151.0,0.00015999,2]
[419998633,1775597451352,-205.12845,0.00015999,2]
[419998634,1775597451362,-151.0,0.00015999,2]
[419998635,1775597451372,-162.465879,0.00015999,2]
[419998636,1775597451382,-205.12845,0.00015999,2]
[419998637,1775597451392,-162.465879,0.00015999,2]
[419998638,1775597451401,-205.12845,0.00015999,2]
[419998639,1775597451411,-162.465879,0.00015999,2]
[419998640,1775597451421,-205.12845,0.00015999,2]
[419998641,1775597451434,-162.465879,0.00015999,2]
[419998642,1775597451444,-154.715671,0.00015999,2]
[419998643,1775597451455,-151.0,0.00015999,2]
[419998644,1775597451464,-154.715671,0.00015999,2]
[419998645,1775597451474,-151.0,0.00015999,2]
[419998646,1775597451485,-154.715671,0.00015999,2]
[419998647,1775597451495,-151.0,0.00015999,2]
[419998648,1775597451505,-208.331616,0.00015999,2]
[419998649,1775597451515,-154.715671,0.00015999,2]
[419998650,1775597451525,-208.331616,0.00015999,2]
[419998651,1775597451535,-208.331616,0.00015999,2]
[419998652,1775597451545,-208.331616,0.00015999,2]
[419998653,1775597451555,-180.734526,0.00015999,2]
[419998654,1775597451565,-740.431645,0.00015999,2]
[419998655,1775597451574,-180.734526,0.00015999,2]
[419998656,1775597451585,-444.271642,0.00015999,2]
[419998657,1775597451595,-740.431645,0.00015999,2]
[419998658,1775597451605,-151.0,0.00015999,2]
[419998659,1775597451615,-444.271642,0.00015999,2]
[419998660,1775597451625,-740.431645,0.00015999,2]
[419998661,1775597451634,-180.734526,0.00015999,2]
[419998662,1775597451644,-444.271642,0.00015999,2]
[419998663,1775597451654,-740.431645,0.00015999,2]
[419998664,1775597451665,-180.734526,0.00015999,2]
[419998665,1775597451675,-444.271642,0.00015999,2]
[419998666,1775597451687,-151.0,0.00015999,2]
[419998667,1775597451697,-2193.4382279,0.00015999,2]
[419998668,1775597451707,-151.0,0.00015999,2]
[419998669,1775597451717,-151.0,0.00015999,2]
[419998670,1775597451727,-402.442769,0.00015999,2]
[419998671,1775597451737,-151.0,0.00015999,2]
[419998672,1775597451746,-1552.944006,0.00015999,2]
[419998673,1775597451756,-151.0,0.00015999,2]
[419998674,1775597451770,-402.442769,0.00015999,2]
[419998675,1775597451781,-1552.944006,0.00015999,2]
[419998676,1775597451791,-151.0,0.00015999,2]
[419998677,1775597451801,-151.0,0.00015999,2]
[419998678,1775597451811,-1552.944006,0.00015999,2]
[419998679,1775597451821,-402.442769,0.00015999,2]
[419998680,1775597451830,-151.0,0.00015999,2]
[419998681,1775597451840,-151.0,0.00015999,2]
[419998682,1775597451850,-402.442769,0.00015999,2]
[419998683,1775597451860,-151.0,0.00015999,2]
[419998684,1775597451871,-1552.944006,0.00015999,2]
[419998685,1775597451881,-407.332612,0.00015999,2]
[419998686,1775597451891,-266.690597,0.00015999,2]
[419998687,1775597451901,-407.332612,0.00015999,2]
[419998688,1775597451911,-266.690597,0.00015999,2]
[419998689,1775597451921,-407.332612,0.00015999,2]
[419998690,1775597451930,-266.690597,0.00015999,2]
[419998691,1775597451940,-151.0,0.00015999,2]
[419998692,1775597451951,-230.165358,0.00015999,2]
[419998693,1775597451962,-407.332612,0.00015999,2]
[419998694,1775597451971,-266.690597,0.00015999,2]
[419998695,1775597451981,-3589.0,0.00016,5]
[419998696,1775597451991,-224.88397604,0.00016,2]
[419998697,1775597452001,-150.0,0.00016,2]
[419998698,1775597452011,-150.0,0.00016,2]
[419998699,1775597452021,-150.0,0.00016,2]
[419998700,1775597452031,-150.0,0.00016,2]
[419998701,1775597452041,-150.0,0.00016,2]
[419998702,1775597452051,-150.0,0.00016,2]
[419998703,1775597452061,-150.0,0.00016,2]
[419998704,1775597452071,-150.0,0.00016,2]
[419998705,1775597452081,-150.0,0.00016,2]
[419998706,1775597452090,-786620.56976601,0.00016,2]
[419998707,1775597452186,-1203.20357086,0.00016,2]
[419998708,1775597452320,-151.0,0.00015883,2]
[419998709,1775597452330,-151.0,0.00015883,2]
[419998710,1775597452340,-230.165358,0.00015883,2]
[419998711,1775597452350,-241.657081,0.00015883,2]
[419998712,1775597452361,-151.0,0.00015999,2]
[419998713,1775597452371,-151.0,0.00015999,2]
[419998714,1775597452383,-36629.53673451,0.00016,2]
[419998715,1775597452438,-24710.27845105,0.00016,2]
[419998716,1775597452461,-230.165358,0.00015999,2]
[419998717,1775597452471,-1608.6951196,0.00016,2]
[419998718,1775597452510,-15391.6668209,0.000141,2]
[419998719,1775597452734,-426.58,0.000141,2]
[419998720,1775597452750,-83893.08993178,0.000141,2]
[419998721,1775597452794,-2089.64025175,0.000141,2]
[419998722,1775597452808,-874.04884267,0.000141,2]
[419998723,1775597452820,-3963.97072245,0.000141,2]
[419998724,1775597452840,-8041.47858622,0.000141,2]
[419998725,1775597452852,-57461.4431514,0.000141,2]
[419998726,1775597452869,-8052.44653517,0.000141,2]
[419998727,1775597452886,-657.92929977,0.000141,2]
[419998728,1775597453473,-1784.91718592,0.000141,2]
[419998729,1775597453485,-937.02054382,0.000141,2]
[419998731,1775597500215,200.0,0.00015678,120]
[419998734,1775598159593,155.03,0.00011608,2]
[419998735,1775598459780,-500.0,0.000128,2]
[419998736,1775598459802,-506.0,0.000131,2]
[419998737,1775598460223,-166.66,0.00013699,2]
[419998738,1775598460248,-166.66,0.00013982,2]
[419998739,1775598460273,-300.0,0.00013999,2]
[419998740,1775598460300,-1855.88777441,0.00014,2]
[419998741,1775598623594,2684.11,0.00011898,2]
[419998755,1775598631825,-500.0,0.000127,2]
[419998756,1775598631835,-505.99997,0.000131,2]
[419998757,1775598631845,-300.0,0.00013707,2]
[419998758,1775598631855,-300.0,0.00013707,2]
[419998759,1775598631865,-2500.0,0.00013708,2]
[419998760,1775598631875,-2500.0,0.00013708,2]
[419998761,1775598631885,-2500.0,0.00013708,2]
[419998762,1775598631895,-2500.0,0.00013708,2]
[419998763,1775598631905,-300.0,0.0001379,2]
[419998764,1775598631915,-300.0,0.0001379,2]
[419998765,1775598631925,-300.0,0.0001379,2]
[419998766,1775598631935,-300.0,0.0001379,2]
[419998767,1775598631946,-300.0,0.0001397,2]
[419998768,1775598631956,-2500.0,0.0001397,2]
[419998770,1775598631966,-515.85823996,0.0001397,2]
[419998771,1775598631976,-381.77293359,0.0001397,2]
[419998773,1775598631986,-1318.4,0.0001399,2]
[419998775,1775598631996,-33153.95232559,0.00014,2]
[419998777,1775598632006,-150.0,0.00014079,2]
[419998778,1775598632017,-623.5282455,0.0001408,2]
[419998779,1775598632027,-166.66,0.00014266,2]
[419998780,1775598632037,-506.0,0.00014295,3]
[419998782,1775598632047,-150.0,0.000143,2]
[419998783,1775598632057,-163.08,0.00014384,2]
[419998784,1775598632077,-150.0,0.000144,2]
[419998785,1775598632088,-150.0,0.000144,2]
[419998786,1775598632100,-150.0,0.000144,2]
[419998787,1775598632111,-150.0,0.000144,2]
[419998789,1775598632121,-150.0,0.00014476,2]
[419998791,1775598632131,-166.66,0.0001455,2]
[419998792,1775598632143,-150.0,0.00014552,2]
[419998793,1775598632154,-150.0,0.00014629,2]
[419998794,1775598632165,-3605.29,0.00014638,2]
[419998795,1775598632177,-3240.0,0.00014638,2]
[419998796,1775598632187,-1611.13,0.00014638,2]
[419998797,1775598632197,-150.0,0.00014705,2]
[419998798,1775598632207,-2359.48,0.00014705,2]
[419998799,1775598632217,-150.0,0.00014781,2]
[419998800,1775598632227,-1536.19,0.00014802,2]
[419998801,1775598632237,-2000.0,0.00014829,2]
[419998802,1775598632247,-166.66,0.00014834,2]
[419998803,1775598632257,-150.0,0.00014857,2]
[419998804,1775598632267,-907.1565,0.0001489,2]
[419998805,1775598632277,-150.0,0.00014933,2]
[419998806,1775598632287,-150.0,0.0001501,2]
[419998807,1775598632297,-101.63748557,0.00015021,2]
[419998808,1775598632312,-318.36251443,0.00015021,2]
[419998809,1775598632323,-166.66,0.00015037,2]
[419998810,1775598632333,-191.48720851,0.00015082,2]
[419998811,1775598632345,-150.0,0.00015086,2]
[419998812,1775598632356,-166.66,0.00015118,2]
[419998813,1775598632367,-500.0,0.00015153,2]
[419998814,1775598632377,-150.0,0.00015162,2]
[419998815,1775598632388,-22.46907706,0.00015172,2]
[419998816,1775598632437,-477.53092294,0.00015172,2]
[419998817,1775598632447,-106.85606046,0.00015199,2]
[419998818,1775598632459,-93.14393954,0.00015199,2]
[419998819,1775598632469,-238.77961515,0.00015199,2]
[419998820,1775598632480,-219.22113069,0.00015199,2]
[419998821,1775598632491,-142.46833122,0.00015204,2]
[419998824,1775598637823,-736.12857669,0.0001429,2]
[419998825,1775598637836,-763.87142331,0.0001429,2]
[419998826,1775598637846,-36.84600418,0.00015204,2]
[419998827,1775598637858,-879.54028418,0.00015204,2]
[419998838,1775598640081,-1521.14538042,0.00015204,2]
[419998839,1775598640096,-223.0,0.00015205,2]
[419998840,1775598640107,-9510.09436061,0.00015205,2]
[419998841,1775598640119,-489.90563939,0.00015205,2]
[419998842,1775598640130,-150.0,0.00015238,2]
[419998843,1775598640140,-552.60216224,0.00015299,2]
[419998845,1775598640217,-1000.0,0.00015299,2]
[419998846,1775598640331,-1027.39783776,0.00015299,2]
[419998847,1775598640340,-700.0,0.000153,5]
[419998848,1775598640350,-1386.70701618,0.0001531,2]
[419998849,1775598640361,-978.60000025,0.0001531,2]
[419998854,1775598641593,-328.11,0.0001531,2]
[419998855,1775598641682,-318.86671523,0.0001531,2]
[419998856,1775598641695,-590.82793436,0.0001531,2]
[419998857,1775598641708,-291.72479288,0.0001531,2]
[419998858,1775598641720,-1058.9566945,0.0001531,2]
[419998868,1775598642142,-559.53366536,0.0001531,2]
[419998869,1775598642158,-1980.58075856,0.0001531,2]
[419998870,1775598642173,-521.06372684,0.0001531,2]
[419998871,1775598642185,-1985.01869584,0.0001531,2]
[419998873,1775598642195,-3557.21,0.0001531,2]
[419998874,1775598642205,-500.0,0.00015312,2]
[419998875,1775598642214,-500.0,0.00015312,2]
[419998876,1775598642223,-115.19175532,0.00015312,2]
[419998877,1775598642234,-297.28257251,0.00015312,2]
[419998891,1775598642850,-193.46047507,0.00015312,2]
[419998892,1775598642859,-500.0,0.00015312,2]
[419998893,1775598642869,-150.0,0.00015314,2]
[419998894,1775598642878,-3605.29,0.0001537,2]
[419998895,1775598642888,-150.0,0.0001539,2]
[419998896,1775598642897,-1500.0,0.000154,5]
[419998897,1775598642906,-414.889609,0.0001542,2]
[419998898,1775598642916,-150.0,0.00015442,2]
[419998899,1775598642925,-150.0,0.00015442,2]
[419998900,1775598642935,-150.0,0.00015442,2]
[419998901,1775598642944,-150.0,0.00015442,2]
[419998902,1775598642953,-150.0,0.00015442,2]
[419998903,1775598642962,-199.50645991,0.00015442,2]
[419998904,1775598642972,-150.0,0.00015467,2]
[419998905,1775598642981,-506.0,0.00015489,4]
[419998906,1775598642991,-165.4358,0.000155,2]
[419998907,1775598643000,-2300.0,0.000155,5]
[419998908,1775598643009,-160.0,0.00015523,2]
[419998909,1775598643019,-389.621297,0.00015523,2]
[419998910,1775598643029,-619.242594,0.00015523,2]
[419998911,1775598643040,-160.0,0.00015523,2]
[419998912,1775598643051,-855.072298,0.00015523,2]
[419998913,1775598643062,-1550.144596,0.00015523,2]
[419998914,1775598643072,-166.66,0.00015534,2]
[419998915,1775598643082,-150.0,0.00015543,2]
[419998916,1775598643091,-683.20091001,0.00015567,2]
[419998917,1775598643101,-3100.0,0.000156,5]
[419998918,1775598643112,-1766.0,0.000156,2]
[419998919,1775598643122,-216.22509039,0.00015604,2]
[419998920,1775598643132,-683.20091,0.00015604,2]
[419998921,1775598643142,-312.0,0.00015611,2]
[419998922,1775598643152,-150.0,0.00015619,2]
[419998923,1775598643163,-683.20091,0.00015641,2]
[419998924,1775598643173,-312.0,0.00015641,2]
[419998925,1775598643183,-270.86,0.00015657,2]
[419998926,1775598643193,-2580.0,0.00015659,2]
[419998927,1775598643203,-2899.6052389,0.00015659,2]
[419998928,1775598643213,-2424.8600533,0.00015659,2]
[419998929,1775598643223,-312.0,0.00015666,2]
[419998931,1775598643234,-2858.4578323,0.00015667,2]
[419998933,1775598643243,-4411.79432894,0.00015667,2]
[419998935,1775598643256,-1751.70942853,0.00015667,2]
[419998937,1775598643272,-570.0,0.00015667,2]
[419998938,1775598643284,-304.11637963,0.00015667,2]
[419998939,1775598643303,-11500.0060065,0.00015667,2]
[419998940,1775598643313,-4829.38906054,0.00015667,2]
[419998959,1775598645801,-636.31418206,0.00015667,2]
[419998960,1775598645810,-3807.962061,0.00015667,2]
[419998961,1775598645820,-6313.8504548,0.00015667,2]
[419998962,1775598645830,-3110.9705971,0.00015667,2]
[419998963,1775598645840,-331.05,0.00015671,2]
[419998964,1775598645849,-683.20091,0.00015678,2]
[419998965,1775598645859,-150.0,0.00015695,2]
[419998966,1775598645869,-312.0,0.00015699,2]
[419998967,1775598645878,-3900.0,0.000157,5]
[419998968,1775598645888,-683.20091,0.00015715,2]
[419998969,1775598645897,-200.0,0.00015747,2]
[419998970,1775598645907,-683.20091,0.00015752,2]
[419998971,1775598645926,-150.0,0.00015771,2]
[419998972,1775598645939,-178.549,0.00015783,2]
[419998973,1775598645948,-312.0,0.00015783,2]
[419998974,1775598645958,-683.20091,0.00015789,2]
[419998975,1775598645967,-3339.398,0.00015799,2]
[419998976,1775598645977,-700.0,0.000158,5]
[419998977,1775598645986,-2000.0,0.000158,2]
[419998978,1775598645996,-683.20091,0.00015826,2]
[419998979,1775598646006,-52296.5833092,0.0001584,2]
[419998980,1775598646016,-10000.0,0.0001584,2]
[419998981,1775598646026,-150.0,0.00015848,2]
[419998982,1775598646037,-169.1901,0.0001585,2]
[419998983,1775598646046,-169.1901,0.0001586,2]
[419998984,1775598646056,-683.20091,0.00015863,2]
[419998985,1775598646065,-169.1901,0.0001587,2]
[419998986,1775598646075,-500.0,0.00015872,2]
[419998987,1775598646084,-200.0,0.00015872,2]
[419998988,1775598646094,-500.0,0.00015873,2]
[419998989,1775598646104,-169.1901,0.0001588,2]
[419998990,1775598646115,-634.0,0.00015883,2]
[419998991,1775598646125,-169.1901,0.0001589,2]
[419998992,1775598646135,-2000.0,0.0001589,2]
[419998993,1775598646145,-487.06005482,0.000159,2]
[419998994,1775598646154,-8659.8002,0.000159,2]
[419998995,1775598646164,-6655.0045477,0.000159,2]
[419998996,1775598646174,-5000.0,0.000159,2]
[419998997,1775598646184,-700.0,0.000159,5]
[419998998,1775598646195,-683.20091,0.000159,2]
[419998999,1775598646205,-233.57251441,0.000159,2]
[419999000,1775598646215,-308.27599724,0.000159,2]
[419999001,1775598646224,-599.0957266,0.000159,2]
[419999002,1775598646234,-150.0,0.00015924,2]
[419999003,1775598646245,-250.0,0.00015945,2]
[419999004,1775598646255,-3944.60426501,0.0001596,2]
[419999005,1775598646266,-500.0,0.00015973,2]
[419999006,1775598646277,-500.0,0.00015973,2]
[419999007,1775598646286,-204.20995808,0.00015973,2]
[419999008,1775598646296,-500.0,0.00015973,2]
[419999009,1775598646305,-500.0,0.00015973,2]
[419999010,1775598646315,-500.0,0.00015973,2]
[419999011,1775598646325,-500.0,0.00015973,2]
[419999012,1775598646336,-500.0,0.00015973,2]
[419999013,1775598646345,-500.0,0.00015973,2]
[419999014,1775598646355,-500.0,0.00015973,2]
[419999015,1775598646364,-500.0,0.00015973,2]
[419999016,1775598646374,-500.0,0.00015973,2]
[419999017,1775598646385,-232.54242935,0.00015973,2]
[419999018,1775598646397,-500.0,0.00015973,2]
[419999019,1775598646408,-500.0,0.00015973,2]
[419999020,1775598646417,-500.0,0.00015973,2]
[419999021,1775598646427,-500.0,0.00015973,2]
[419999022,1775598646442,-500.0,0.00015973,2]
[419999023,1775598646452,-186.27125357,0.00015973,2]
[419999024,1775598646464,-500.0,0.00015973,2]
[419999025,1775598646474,-418.3764967,0.00015973,2]
[419999026,1775598646484,-208.42329552,0.0001599,2]
[419999027,1775598646494,-151.0,0.00015997,2]
[419999028,1775598646505,-666.0,0.00015999,2]
[419999029,1775598646515,-158.205,0.00015999,2]
[419999030,1775598646525,-150.0,0.00015999,2]
[419999031,1775598646535,-150.0,0.00015999,2]
[419999032,1775598646544,-150.0,0.00015999,2]
[419999033,1775598646554,-150.0,0.00015999,2]
[419999034,1775598646564,-150.0,0.00015999,2]
[419999035,1775598646573,-150.0,0.00015999,2]
[419999036,1775598646583,-150.0,0.00015999,2]
[419999037,1775598646593,-197.8056862,0.00015999,2]
[419999039,1775598646603,-500.0,0.00015999,2]
[419999041,1775598646614,-500.0,0.00015999,2]
[419999043,1775598646624,-500.0,0.00015999,2]
[419999045,1775598646634,-216.39673885,0.00015999,2]
[419999047,1775598646645,-182.6596523,0.00015999,2]
[419999050,1775598646656,-500.0,0.00015999,2]
[419999052,1775598646667,-380.82067583,0.00015999,2]
[419999054,1775598646676,-364.15258974,0.00015999,2]
[419999056,1775598646686,-206.92116451,0.00015999,2]
[419999058,1775598646697,-150.0,0.00015999,2]
[419999060,1775598646707,-414.30001104,0.00015999,2]
[419999062,1775598646717,-4457.0,0.00016,5]
[419999064,1775598646728,-3565.0,0.00016,5]
[419999066,1775598646738,-150.0,0.00016,2]
[419999068,1775598646748,-150.0,0.00016,2]
[419999070,1775598646758,-138784.85666607,0.00016,2]
[419999074,1775598646787,-42452.0662582,0.00016,2]
[419999082,1775598646852,-1788.48533625,0.00016,2]
[419999085,1775598646865,-2141.50000001,0.00016,2]
[419999140,1775598654755,2409.0,0.000115,5]
[419999141,1775599277317,1242.47023133,0.0001209,2]
[419999145,1775599728548,151.72,7.204e-05,2]
[419999146,1775599728750,151.72,8.004e-05,2]
[419999147,1775599728958,151.72,8.805e-05,2]
[419999148,1775599729167,151.72,9.605e-05,2]
[419999149,1775599729362,151.72,0.00010405,2]
[419999150,1775599729564,151.72,0.00011206,2]
[419999151,1775599729770,151.72,0.00012006,2]
[419999153,1775599811790,6307.89174743,0.000107,2]
[419999157,1775599831832,-216.8192085,0.000125,2]
[419999158,1775599831841,-745.4273864,0.00012599,2]
[419999159,1775599831853,-454.5726136,0.00012599,2]
[419999160,1775599831863,-211.9804,0.000126,2]
[419999161,1775599831872,-500.0,0.000126,2]
[419999162,1775599831881,-500.0,0.000126,2]
[419999163,1775599831890,-500.0,0.000126,2]
[419999164,1775599831900,-241.72288063,0.000126,2]
[419999165,1775599831909,-300.0,0.00012806,2]
[419999166,1775599831918,-151.72,0.00012807,2]
[419999167,1775599831928,-250.0,0.00013,2]
[419999168,1775599831937,-5652.23393349,0.00013,2]
[419999169,1775599831946,-1772.08910736,0.0001305,2]
[419999170,1775599831997,-3619.53268754,0.0001305,2]
[419999171,1775599832007,-506.0,0.000131,2]
[419999172,1775599832018,-2836.56191833,0.000135,7]
[419999173,1775599832028,-1000.0,0.000135,2]
[419999174,1775599832038,-151.72,0.00013607,2]
[419999175,1775599832048,-150.0,0.00013699,2]
[419999176,1775599832057,-150.0,0.00013699,2]
[419999177,1775599832067,-300.0,0.0001375,2]
[419999178,1775599832076,-300.0,0.0001375,2]
[419999179,1775599832085,-300.0,0.0001375,2]
[419999180,1775599832095,-300.0,0.0001375,2]
[419999181,1775599832104,-300.0,0.0001375,2]
[419999182,1775599832113,-787.9553,0.000138,2]
[419999183,1775599832122,-150.0,0.00013858,2]
[419999184,1775599832132,-2500.0,0.00013859,2]
[419999185,1775599832141,-2500.0,0.00013859,2]
[419999186,1775599832150,-2500.0,0.00013859,2]
[419999187,1775599832159,-2500.0,0.00013859,2]
[419999188,1775599832168,-2500.0,0.00013859,2]
[419999189,1775599832178,-150.0,0.00013973,2]
[419999190,1775599832187,-150.0,0.00013973,2]
[419999191,1775599832197,-1500.0,0.00014,2]
[419999192,1775599832206,-420.0,0.00014046,2]
[419999193,1775599832216,-150.0,0.00014247,2]
[419999194,1775599832225,-200.0,0.00014259,2]
[419999195,1775599832234,-506.0,0.00014362,3]
[419999196,1775599832243,-10408.36163795,0.0001439,2]
[419999197,1775599832252,-150.0,0.000144,2]
[419999198,1775599832262,-150.0,0.000144,2]
[419999199,1775599832271,-150.0,0.000144,2]
[419999200,1775599832281,-150.0,0.000144,2]
[419999201,1775599832291,-150.0,0.000144,2]
[419999202,1775599832301,-150.0,0.000144,2]
[419999203,1775599832311,-150.0,0.000144,2]
[419999205,1775599832320,-151.72,0.00014407,2]
[419999207,1775599832329,-169.41,0.00014407,2]
[419999208,1775599832338,-175.47,0.00014426,2]
[419999209,1775599832347,-150.0,0.000145,2]
[419999210,1775599832356,-500.0,0.00014537,2]
[419999211,1775599832365,-500.0,0.00014537,2]
[419999212,1775599832375,-239.80368072,0.00014537,2]
[419999213,1775599832384,-338.56055774,0.00014537,2]
[419999214,1775599832393,-500.0,0.00014537,2]
[419999215,1775599832402,-500.0,0.00014537,2]
[419999216,1775599832412,-500.0,0.00014537,2]
[419999217,1775599832421,-500.0,0.00014537,2]
[419999219,1775599832430,-500.0,0.00014537,2]
[419999220,1775599832440,-500.0,0.00014537,2]
[419999221,1775599832449,-500.0,0.00014537,2]
[419999222,1775599832458,-500.0,0.00014537,2]
[419999223,1775599832467,-500.0,0.00014537,2]
[419999224,1775599832476,-500.0,0.00014537,2]
[419999225,1775599832486,-493.46007712,0.00014537,2]
[419999226,1775599832495,-500.0,0.00014537,2]
[419999227,1775599832504,-56226.28444503,0.00014538,2]
[419999228,1775599832517,-4584.01751425,0.00014538,2]